lending/lending_fUSD_20240130
["ID","MTS","AMOUNT","RATE_DAILY","PERIOD"]
[313024917,1706641841347,-500.0,0.00022999,2]
[313024918,1706641841356,-500.0,0.00022999,2]
[313024919,1706641841365,-180.0,0.00022999,2]
[313024920,1706641841375,-500.0,0.00022999,2]
[313024921,1706641841384,-500.0,0.00022999,2]
[313024922,1706641841393,-521.3876341,0.00022999,2]
[313024923,1706641841401,-500.0,0.00022999,2]
[313024924,1706641841410,-500.0,0.00022999,2]
[313024925,1706641841420,-500.0,0.00022999,2]
[313024926,1706641841429,-500.0,0.00022999,2]
[313024927,1706641841438,-500.0,0.00022999,2]
[313024928,1706641841448,-500.0,0.00022999,2]
[313024929,1706641841457,-500.0,0.00022999,2]
[313024930,1706641841466,-500.0,0.00022999,2]
[313024931,1706641841475,-500.0,0.00022999,2]
[313024932,1706641841484,-238.00630445,0.00022999,2]
[313024933,1706641841493,-65378.32945106,0.00023,2]
[313024934,1706641841506,-926.96937602,0.00023,2]
[313024935,1706641841518,-261.355,0.00023,2]
[313024936,1706641841529,-264.77134148,0.00023,2]
[313024937,1706641841540,-293.7174423,0.00023,2]
[313024938,1706641841824,-644.08472678,0.00023,2]
[313024939,1706641841835,-293.21426,0.00023,2]
[313024940,1706641841846,-777.96379849,0.00023,2]
[313024941,1706641841858,-865.43343827,0.00023,2]
[313024942,1706641841871,-311.0,0.00023,2]
[313024943,1706641841883,-2577.59114036,0.00023,2]
[313024944,1706641841895,-355.05855364,0.00023,2]
[313024945,1706641841907,-8398.1628,0.00023,2]
[313024946,1706641841922,-2355.0,0.00023,2]
[313024947,1706641841936,-1453.84490889,0.00023,2]
[313024948,1706641841950,-383.70595248,0.00023,2]
[313024949,1706641841962,-8795.11728538,0.00023,2]
[313024950,1706641841973,-6026.09268479,0.00023,2]
[313024951,1706641841988,-1025.0357921,0.00023,2]
[313024952,1706641841999,-1164.02355679,0.00023,2]
[313024953,1706641842011,-582.17636691,0.00023,2]
[313024981,1706641842675,-1077.19,0.00023,2]
[313024995,1706641842728,-1452.83921147,0.00023,2]
[313024997,1706641842740,-360.0000149,0.00023,2]
[313025000,1706641842753,-275.0000004,0.00023,2]
[313025007,1706641842839,-649476.29835032,0.00023,2]
[313025009,1706641842852,-11957.34099576,0.00023,2]
[313025012,1706641842894,-274.27926531,0.00023,2]
[313025022,1706641845671,-2547.5,0.00023,2]
[313025023,1706641845683,-735.9234,0.00023,2]
[313025024,1706641845695,-1660.0,0.00023,2]
[313025025,1706641845706,-503.5,0.00023,2]
[313025026,1706641845718,-842.0,0.00023,2]
[313025027,1706641845729,-366.39738102,0.00023,2]
[313025030,1706641845749,-538967.75703047,0.00023,2]
[313025032,1706641845761,-10023.77322503,0.00023,2]
[313025034,1706641845774,-4090.62475993,0.00023,2]
[313025035,1706641845785,-2904.57316507,0.00023,2]
[313025036,1706641845797,-8843.92475302,0.00023,2]
[313025037,1706641845813,-10289.99999999,0.00023,2]
[313025038,1706641845825,-51422.37386909,0.00023,2]
[313025039,1706641845837,-1136.31970679,0.00023,2]
[313025040,1706641845854,-858.9596004,0.00023,2]
[313025041,1706641845866,-5617.7333,0.00023,2]
[313025042,1706641845902,-5570.45453968,0.00023,2]
[313025043,1706641845918,-17749.21366054,0.00023,2]
[313025044,1706641845965,-5208.30582001,0.00023,2]
[313025045,1706641845977,-11280.42425954,0.00023,2]
[313025046,1706641846020,-950.0,0.00023,2]
[313025047,1706641981215,3196.50427923,0.00022078,2]
[313025049,1706642038395,155.0,0.00022078,2]
[313025051,1706642060364,281.62914468,0.00022078,2]
[313025052,1706642077664,226.84,0.00022084,2]
[313025059,1706642386358,184.05,0.00017865,2]
[313025060,1706642428760,160.0,0.00022339,2]
[313025062,1706642479864,285.8,0.00022281,2]
[313025063,1706642509229,155.0,0.00020481,2]
[313025064,1706642510759,257.03,0.00020307,2]
[313025065,1706642516832,211.09,0.00022118,2]
[313025066,1706642527218,156.14418568,0.00020481,2]
[313025067,1706642553918,17878.85,0.00022171,2]
[313025068,1706642585223,1374.88,0.0002207,2]
[313025071,1706642702105,250.0,0.00021863,2]
[313025072,1706642758078,2369.7,0.00021918,2]
[313025073,1706642784523,150.79,0.00021884,2]
[313025074,1706642791306,2000.0,0.00021906,2]
[313025075,1706642791497,189.47,0.00021906,10]
[313025076,1706642805640,153.07,0.0002221,2]
[313025077,1706642805886,153.07,0.00022403,2]
[313025078,1706642943306,335.78,0.00021892,2]
[313025084,1706642971190,159.21094753,0.0002187,2]
[313025085,1706642975931,283.63,0.00020024,2]
[313025086,1706642976164,283.63,0.00022288,2]
[313025087,1706643014114,23900.0,0.00021969,2]
[313025088,1706643029581,872.0,0.00022045,2]
[313025113,1706643033250,-216.14257406,0.00022529,2]
[313025115,1706643033260,-1052.88889193,0.0002253,2]
[313025117,1706643033269,-951.78298081,0.00022531,2]
[313025122,1706643033306,-48.21701919,0.00022531,2]
[313025124,1706643033315,-413.15022701,0.00022531,2]
[313025126,1706643033324,-446.5727538,0.00022532,2]
[313025132,1706643033363,-2751.25274758,0.00022532,2]
[313025134,1706643033372,-467.983423,0.00022538,2]
[313025136,1706643033381,-160.21477734,0.00022556,2]
[313025138,1706643033390,-153.07,0.00022596,2]
[313025140,1706643033400,-173.19621333,0.000226,2]
[313025143,1706643033420,-661.89166211,0.000226,2]
[313025145,1706643033430,-150.0,0.00022663,2]
[313025147,1706643033439,-294.48333789,0.00022699,2]
[313025152,1706643033477,-5.51666211,0.00022699,2]
[313025154,1706643033487,-279.84374677,0.00022731,2]
[313025156,1706643033496,-191.27689947,0.00022732,2]
[313025158,1706643033505,-2143.62450616,0.00022732,2]
[313025160,1706643033514,-561.75400297,0.00022733,2]
[313025396,1706643037862,-7978.94377898,0.00022733,2]
[313025397,1706643037874,-22985.19527001,0.00022733,2]
[313025398,1706643037916,-1334.25292,0.00022733,2]
[313025399,1706643037971,-10245.54180994,0.00022733,2]
[313025400,1706643037981,-2818.99566432,0.00022754,2]
[313025401,1706643037992,-270.5502,0.00022754,2]
[313025402,1706643038029,-912.4500044,0.00022754,2]
[313025536,1706643040389,-290.39991326,0.00022754,2]
[313025537,1706643040401,-343.15278322,0.00022754,2]
[313025538,1706643040411,-524.86593909,0.00022757,2]
[313025539,1706643040421,-296.08247319,0.00022757,2]
[313025540,1706643040430,-760.46950092,0.00022757,2]
[313025541,1706643040440,-45.1225203,0.00022757,2]
[313025542,1706643040474,-116.98177819,0.00022757,2]
[313025543,1706643040484,-215.53094657,0.00022757,2]
[313025544,1706643040493,-156.9638117,0.00022757,2]
[313025545,1706643040504,-15.28514663,0.00022757,2]
[313025546,1706643040513,-159.12735678,0.00022757,2]
[313025547,1706643040523,-578.9784483,0.00022757,2]
[313025548,1706643040565,-3053.69696398,0.00022757,2]
[313025549,1706643040575,-1201.08,0.00022758,2]
[313025550,1706643040584,-4208.67569338,0.0002276,2]
[313025551,1706643040594,-247.50960015,0.00022768,2]
[313025552,1706643040603,-155.0,0.00022768,2]
[313025553,1706643040612,-281.28534164,0.00022768,2]
[313025554,1706643040621,-153.07,0.00022789,2]
[313025555,1706643040630,-8177.3658,0.000229,2]
[313025556,1706643040640,-2257.98145851,0.000229,2]
[313025557,1706643040649,-628.88228715,0.000229,2]
[313025558,1706643040658,-1000.0,0.000229,2]
[313025559,1706643040667,-154.49246699,0.000229,2]
[313025560,1706643040676,-311.11076368,0.000229,2]
[313025561,1706643040685,-1005.61335292,0.000229,2]
[313025562,1706643040695,-516.49624304,0.000229,2]
[313025563,1706643040704,-210.18924124,0.000229,2]
[313025564,1706643040713,-162.74596975,0.00022975,2]
[313025565,1706643040722,-153.07,0.00022982,2]
[313025566,1706643040731,-159.79188252,0.0002299,2]
[313025567,1706643040740,-319.36834875,0.00022998,2]
[313025568,1706643040750,-2686.4464071,0.00022998,2]
[313025569,1706643040759,-1047.55348492,0.00022998,2]
[313025570,1706643040768,-1042.70064617,0.00022998,2]
[313025571,1706643040777,-503.73967654,0.00022998,2]
[313025572,1706643040786,-155.37341501,0.00022998,2]
[313025573,1706643040795,-400.0,0.00022998,2]
[313025574,1706643040804,-301.44763826,0.00022998,2]
[313025575,1706643040813,-171.70472139,0.00022998,2]
[313025576,1706643040822,-400.05263761,0.00022998,2]
[313025577,1706643040830,-235.12703746,0.00022998,2]
[313025578,1706643040840,-292.70291374,0.00022998,2]
[313025579,1706643040849,-164.16594824,0.00022998,2]
[313025580,1706643040858,-204.80922949,0.00022998,2]
[313025581,1706643040867,-417.45846178,0.00022999,2]
[313025582,1706643040876,-1990.06970528,0.00022999,2]
[313025583,1706643040885,-6630.17001205,0.00022999,2]
[313025584,1706643040894,-79505.04160313,0.00023,2]
[313025585,1706643040907,-3983.38373562,0.00023,2]
[313025586,1706643041225,-632.6643934,0.00023,2]
[313025587,1706643041254,-319.51729155,0.00023,2]
[313025591,1706643042848,-846.22987002,0.00023,2]
[313025592,1706643042860,-2977.01810696,0.00023,2]
[313025593,1706643042872,-267.9653987,0.00023,2]
[313025594,1706643042884,-4594.2411043,0.00023,2]
[313025595,1706643042895,-11457.67328679,0.00023,2]
[313025596,1706643042919,-301.66791558,0.00023,2]
[313025597,1706643042933,-20962.57,0.00023,2]
[313025598,1706643042944,-17750.87304341,0.00023,2]
[313025599,1706643042957,-1818.02746828,0.00023,2]
[313025600,1706643042969,-966.02090193,0.00023,2]
[313025601,1706643042980,-374.54924198,0.00023,2]
[313025602,1706643043156,-2540.39645503,0.00023,2]
[313025603,1706643043168,-455.18417567,0.00023,2]
[313025604,1706643043179,-1044.09255003,0.00023,2]
[313025605,1706643043191,-431.79686796,0.00023,2]
[313025606,1706643043202,-544.10587771,0.00023,2]
[313025607,1706643043217,-1228.15636633,0.00023,2]
[313025608,1706643043229,-1518.25,0.00023,2]
[313025609,1706643043242,-396.74077807,0.00023,2]
[313025610,1706643043255,-450.42047106,0.00023,2]
[313025611,1706643043270,-1750.65259078,0.00023,2]
[313025612,1706643043282,-551.19395689,0.00023,2]
[313025613,1706643043293,-1641.23690211,0.00023,2]
[313025614,1706643043312,-351806.58390888,0.00023,2]
[313025615,1706643043323,-737399.95961928,0.00023,2]
[313025616,1706643043342,-5120.84261952,0.00023,2]
[313025738,1706643045851,-8425.54539426,0.00023,2]
[313025745,1706643045908,-770.0,0.00023,2]
[313025751,1706643046040,-226.02936138,0.00022999,2]
[313025754,1706643046050,-22786.70019824,0.00023,2]
[313025756,1706643046062,-207992.12103266,0.00023,2]
[313025776,1706643046245,-9418.07339238,0.00023,2]
[313025780,1706643046274,-22517.13893458,0.00023,2]
[313025786,1706643046314,-375.31267016,0.00023,2]
[313025789,1706643046335,-4200.897372,0.00023,2]
[313025792,1706643046356,-2347.46759022,0.00023,2]
[313025795,1706643046374,-518.04996206,0.00023,2]
[313025800,1706643046411,-2570.79526078,0.00023,2]
[313025830,1706643046623,-9181.16293119,0.00023,2]
[313025835,1706643046640,-1112.65951607,0.00023,2]
[313025936,1706643053648,1349.37814829,0.00022079,2]
[313025937,1706643071410,4671.30370322,0.00020698,5]
[313025938,1706643082290,2490.09512574,0.00022306,2]
[313025939,1706643122524,159.96731223,0.00022079,2]
[313025940,1706643123985,16720.30631215,0.00022079,2]
[313025941,1706643130687,269.53772831,0.00022079,2]
[313025942,1706643132751,209.38748931,0.00022079,2]
[313025943,1706643175819,250.0,0.00022217,2]
[313025944,1706643203237,212.26,0.00022064,2]
[313025945,1706643273399,2000.0,0.00021963,2]
[313025946,1706643282665,289.5,0.00022128,2]
[313025947,1706643283083,289.5,0.00022188,2]
[313025948,1706643283350,289.5,0.00022249,2]
[313025949,1706643283592,289.5,0.0002231,2]
[313025950,1706643283808,289.5,0.0002237,2]
[313025951,1706643284041,289.5,0.00022431,2]
[313025952,1706643284272,289.5,0.00022492,2]
[313025953,1706643373420,250.0,0.00021918,2]
[313025954,1706643410514,847.07,0.00019878,2]
[313025955,1706643410746,847.07,0.00022142,2]
[313025957,1706643452284,360.77,0.00021777,2]
[313025959,1706643465631,169.2,0.00021777,2]
[313025960,1706643477282,302.4,0.00021777,2]
[313025961,1706643559820,2689.81,0.00021783,2]
[313025962,1706643572977,854.1567833,0.00021783,2]
[313025963,1706643699041,2000.0,0.0002182,2]
[313025964,1706643782561,181.58,0.00022368,2]
[313025966,1706643848238,762.36,0.00019843,2]
[313025967,1706643848666,762.36,0.00022107,2]
[313025968,1706643857156,188.17,0.00021942,2]
[313025969,1706643857370,188.17,0.00022002,2]
[313025970,1706643857576,188.17,0.00022062,2]
[313025971,1706643857785,188.17,0.00022123,2]
[313025972,1706643858168,188.17,0.00022183,2]
[313025973,1706643858246,188.17,0.00022243,2]
[313025974,1706643858663,188.17,0.00022303,2]
[313025975,1706643858885,188.17,0.00022363,2]
[313025976,1706643859103,188.17,0.00022423,2]
[313025977,1706643859301,188.17,0.00022484,2]
[313025979,1706643893024,180.38,0.00021777,2]
[313025980,1706643938094,758.08,0.00021777,2]
[313025981,1706643991486,2241.5,0.00021787,2]
[313025982,1706644034422,-413.15022701,0.00022543,2]
[313025983,1706644072982,169.8,0.00021746,2]
[313025984,1706644083170,408.32675225,0.00022543,2]
[313025985,1706644113759,1008.72302074,0.00021739,2]
[313025986,1706644113782,991.27697926,0.00021739,2]
[313025990,1706644203947,176.73,0.0002201,2]
[313026036,1706644232018,-188.17,0.00022544,2]
[313026038,1706644232027,-176.73,0.00022558,2]
[313026040,1706644232037,-304.052,0.00022565,2]
[313026042,1706644232049,-322.84270231,0.00022565,2]
[313026057,1706644232242,-4910.35077126,0.00022565,2]
[313026058,1706644232255,-10429.99999999,0.00022565,2]
[313026067,1706644232512,-815.6374002,0.00022565,2]
[313026068,1706644232606,-1503.99101448,0.00022565,2]
[313026069,1706644232618,-2104.8513,0.00022565,2]
[313026070,1706644232630,-4013.93372087,0.00022565,2]
[313026071,1706644232639,-3530.97929601,0.00022566,2]
[313026072,1706644232652,-6378.12288603,0.00022566,2]
[313026073,1706644232664,-2055.44954774,0.00022566,2]
[313026074,1706644232675,-11737.84626998,0.00022566,2]
[313026075,1706644232687,-662.945,0.00022566,2]
[313026076,1706644232703,-12664.61507924,0.00022566,2]
[313026077,1706644232715,-972.40604228,0.00022566,2]
[313026078,1706644232728,-422.93054561,0.00022566,2]
[313026079,1706644232740,-2065.45835351,0.00022566,2]
[313026080,1706644232756,-678.38466293,0.00022566,2]
[313026082,1706644232767,-1153.450029,0.00022566,2]
[313026083,1706644232778,-742.44,0.00022566,2]
[313026084,1706644232830,-1381.7786119,0.00022566,2]
[313026085,1706644232842,-7150.54392527,0.00022566,2]
[313026086,1706644232851,-3055.39297424,0.00022566,2]
[313026088,1706644234296,831.99302074,0.00022543,2]
[313026089,1706644234318,2000.0,0.00022543,2]
[313026090,1706644234338,2000.0,0.00022543,2]
[313026091,1706644234358,2000.0,0.00022543,2]
[313026092,1706644234379,2000.0,0.00022543,2]
[313026093,1706644234400,2000.0,0.00022543,2]
[313026094,1706644234420,2000.0,0.00022543,2]
[313026095,1706644234441,2000.0,0.00022543,2]
[313026096,1706644234461,2000.0,0.00022543,2]
[313026097,1706644234481,2000.0,0.00022543,2]
[313026098,1706644234500,2000.0,0.00022543,2]
[313026099,1706644234522,2000.0,0.00022543,2]
[313026100,1706644234547,2000.0,0.00022543,2]
[313026101,1706644234567,2000.0,0.00022543,2]
[313026102,1706644234588,2000.0,0.00022543,2]
[313026103,1706644234611,2000.0,0.00022543,2]
[313026104,1706644234633,2000.0,0.00022543,2]
[313026105,1706644234655,2000.0,0.00022543,2]
[313026106,1706644234674,2000.0,0.00022543,2]
[313026107,1706644234694,2000.0,0.00022543,2]
[313026108,1706644234714,2000.0,0.00022543,2]
[313026109,1706644234735,2000.0,0.00022543,2]
[313026110,1706644234756,2000.0,0.00022543,2]
[313026111,1706644234775,2000.0,0.00022543,2]
[313026112,1706644238089,-1385.73435,0.00022543,2]
[313026113,1706644238102,-40382.6950797,0.00022543,2]
[313026114,1706644238118,-2121.53201396,0.00022543,2]
[313026115,1706644238154,-2376.34405566,0.00022543,2]
[313026116,1706644238165,-339.9021978,0.00022543,2]
[313026117,1706644238176,-21736.11035746,0.00022543,2]
[313026118,1706644238191,-375.78379918,0.00022543,2]
[313026119,1706644238202,-4186.816101,0.00022543,2]
[313026120,1706644238310,-5000.0,0.00022543,2]
[313026121,1706644238324,-13121.1730245,0.00022543,2]
[313026122,1706644238334,-2474.9770284,0.00022566,2]
[313026123,1706644238346,-613.02158694,0.00022566,2]
[313026124,1706644238358,-358.48667185,0.00022566,2]
[313026125,1706644238369,-500.0,0.00022566,2]
[313026126,1706644238381,-274.06673411,0.00022566,2]
[313026127,1706644238420,-340.46030028,0.00022566,2]
[313026128,1706644238435,-1115.3846688,0.00022566,2]
[313026129,1706644238447,-1362.44103371,0.00022566,2]
[313026130,1706644238458,-5609.169647,0.00022566,2]
[313026134,1706644242589,-5791.04576115,0.00022566,2]
[313026153,1706644243082,-4953.27524324,0.00022566,2]
[313026171,1706644243245,-46295.89649168,0.00022566,2]
[313026173,1706644243254,-137370.6453333,0.00022583,2]
[313026175,1706644243263,-188.17,0.00022604,2]
[313026177,1706644243273,-150.0,0.00022661,2]
[313026179,1706644243282,-412.65759611,0.00022662,2]
[313026181,1706644243291,-150.99,0.00022663,2]
[313026183,1706644243300,-1000.0,0.00022663,2]
[313026185,1706644243309,-17734.29362923,0.00022663,2]
[313026187,1706644243318,-188.17,0.00022664,2]
[313026189,1706644243327,-4708.6781,0.00022665,2]
[313026191,1706644243336,-26599.7709,0.00022665,2]
[313026193,1706644243345,-7080.5545,0.00022665,2]
[313026195,1706644243354,-1000.0,0.0002267,2]
[313026197,1706644243363,-381.5,0.0002267,2]
[313026199,1706644243372,-2500.0,0.0002267,2]
[313026201,1706644243381,-855.6615917,0.00022697,2]
[313026203,1706644243391,-791.1862571,0.00022698,2]
[313026205,1706644243399,-499.99,0.00022698,2]
[313026207,1706644243408,-865.83,0.00022698,2]
[313026209,1706644243417,-188.17,0.00022724,2]
[313026211,1706644243426,-150.0,0.00022727,2]
[313026213,1706644243435,-150.0,0.00022729,2]
[313026215,1706644243445,-150.0,0.00022731,2]
[313026217,1706644243454,-150.0,0.00022737,2]
[313026219,1706644243463,-150.0,0.00022737,2]
[313026222,1706644243472,-150.0,0.00022741,2]
[313026225,1706644243481,-150.0,0.00022744,2]
[313026228,1706644243491,-300.0,0.00022747,2]
[313026231,1706644243500,-150.0,0.00022752,2]
[313026234,1706644243511,-150.0,0.00022754,2]
[313026237,1706644243520,-150.0,0.00022757,2]
[313026240,1706644243531,-150.0,0.00022759,2]
[313026243,1706644243541,-2000.28955194,0.00022762,2]
[313026246,1706644243550,-150.0,0.00022763,2]
[313026249,1706644243559,-371.2069388,0.00022763,2]
[313026251,1706644243569,-2310.49722789,0.00022763,2]
[313026254,1706644243578,-465.03674395,0.00022763,2]
[313026256,1706644243587,-1043.0192466,0.00022763,2]
[313026259,1706644243597,-4108.15873278,0.00022763,2]
[313026263,1706644243612,-150.0,0.00022764,2]
[313026265,1706644243622,-4325.34904083,0.00022764,2]
[313026267,1706644243632,-300.0,0.00022765,2]
[313026270,1706644243642,-150.0,0.00022765,2]
[313026274,1706644243653,-1000.0,0.00022765,2]
[313026276,1706644243663,-64655.24621679,0.00022765,2]
[313026279,1706644243673,-150.0,0.00022766,2]
[313026280,1706644243682,-729.08,0.00022766,2]
[313026282,1706644243692,-723.38,0.00022766,2]
[313026283,1706644243702,-495.4850043,0.00022766,2]
[313026285,1706644243711,-280.79430241,0.00022766,2]
[313026287,1706644243721,-155.73119273,0.00022766,2]
[313026290,1706644243731,-150.0,0.00022767,2]
[313026292,1706644243741,-150.0,0.00022777,2]
[313026295,1706644243752,-150.0,0.00022783,2]
[313026297,1706644243762,-188.17,0.00022784,2]
[313026299,1706644243771,-150.0,0.00022787,2]
[313026301,1706644243781,-150.0,0.00022787,2]
[313026302,1706644243790,-150.0,0.00022791,2]
[313026305,1706644243800,-150.0,0.00022793,2]
[313026306,1706644243809,-150.0,0.00022794,2]
[313026309,1706644243819,-28893.31562464,0.00022799,2]
[313026311,1706644243829,-150.0,0.00022799,2]
[313026312,1706644243838,-155.93305506,0.000228,2]
[313026314,1706644243847,-150.0,0.00022802,2]
[313026316,1706644243857,-300.0,0.00022802,2]
[313026318,1706644243867,-150.0,0.00022805,2]
[313026321,1706644243877,-150.0,0.00022806,2]
[313026323,1706644243886,-150.0,0.00022807,2]
[313026325,1706644243896,-150.0,0.00022811,2]
[313026326,1706644243905,-150.0,0.00022813,2]
[313026329,1706644243915,-150.0,0.00022813,2]
[313026330,1706644243927,-326.55765796,0.00022815,2]
[313026332,1706644243938,-150.0,0.00022817,2]
[313026334,1706644243948,-150.0,0.00022819,2]
[313026336,1706644243958,-150.0,0.00022822,2]
[313026338,1706644243967,-150.0,0.00022823,2]
[313026340,1706644243976,-308.80025419,0.00022825,2]
[313026342,1706644243986,-150.0,0.00022825,2]
[313026344,1706644243995,-300.0,0.00022826,2]
[313026346,1706644244004,-150.0,0.00022827,2]
[313026348,1706644244014,-150.0,0.00022828,2]
[313026350,1706644244023,-150.0,0.00022828,2]
[313026352,1706644244034,-150.0,0.00022829,2]
[313026354,1706644244043,-150.0,0.0002283,2]
[313026356,1706644244053,-150.0,0.00022831,2]
[313026358,1706644244063,-150.0,0.00022833,2]
[313026360,1706644244073,-169.8,0.00022833,2]
[313026362,1706644244082,-150.0,0.00022835,2]
[313026364,1706644244091,-150.0,0.00022841,2]
[313026366,1706644244101,-150.0,0.00022841,2]
[313026368,1706644244110,-188.17,0.00022844,2]
[313026370,1706644244119,-150.0,0.00022847,2]
[313026372,1706644244129,-150.0,0.00022847,2]
[313026374,1706644244138,-150.0,0.00022848,2]
[313026376,1706644244147,-300.0,0.00022849,2]
[313026378,1706644244157,-150.0,0.00022849,2]
[313026380,1706644244165,-150.0,0.00022852,2]
[313026382,1706644244174,-150.0,0.00022852,2]
[313026384,1706644244183,-150.0,0.00022853,2]
[313026386,1706644244192,-150.0,0.00022854,2]
[313026388,1706644244202,-150.0,0.00022861,2]
[313026409,1706644244386,-150.0,0.00022861,2]
[313026411,1706644244395,-150.0,0.00022863,2]
[313026413,1706644244404,-150.0,0.00022863,2]
[313026416,1706644244414,-1500.0,0.00022864,2]
[313026417,1706644244423,-150.0,0.00022865,2]
[313026419,1706644244432,-150.0,0.00022865,2]
[313026421,1706644244442,-150.0,0.00022866,2]
[313026424,1706644244451,-300.0,0.00022873,2]
[313026425,1706644244460,-150.0,0.00022876,2]
[313026426,1706644244469,-800.0,0.00022877,2]
[313026427,1706644244478,-800.0,0.00022877,2]
[313026428,1706644244486,-150.0,0.00022878,2]
[313026430,1706644244496,-150.0,0.00022885,2]
[313026432,1706644244505,-150.0,0.00022889,2]
[313026434,1706644244515,-150.0,0.00022889,2]
[313026436,1706644244524,-150.0,0.0002289,2]
[313026438,1706644244535,-150.0,0.00022892,2]
[313026440,1706644244545,-150.0,0.00022892,2]
[313026442,1706644244554,-150.0,0.00022892,2]
[313026444,1706644244563,-1000.0,0.00022894,2]
[313026446,1706644244572,-150.0,0.00022895,2]
[313026448,1706644244582,-150.0,0.00022896,2]
[313026450,1706644244591,-710.28,0.000229,2]
[313026452,1706644244599,-2877.90932179,0.000229,2]
[313026454,1706644244609,-265.84115819,0.000229,2]
[313026456,1706644244619,-1308.05261984,0.000229,2]
[313026458,1706644244629,-17550.35815928,0.000229,2]
[313026460,1706644244638,-153.48051298,0.000229,2]
[313026462,1706644244647,-1027.41095898,0.000229,2]
[313026464,1706644244656,-1522.51494954,0.000229,2]
[313026466,1706644244665,-150.0,0.00022903,2]
[313026468,1706644244675,-150.0,0.00022903,2]
[313026470,1706644244684,-150.0,0.00022904,2]
[313026472,1706644244693,-188.17,0.00022905,2]
[313026474,1706644244702,-289.52666185,0.0002291,2]
[313026476,1706644244711,-150.0,0.00022911,2]
[313026478,1706644244721,-150.0,0.00022912,2]
[313026480,1706644244730,-150.0,0.00022916,2]
[313026482,1706644244739,-150.0,0.00022919,2]
[313026484,1706644244748,-150.0,0.00022921,2]
[313026486,1706644244757,-150.0,0.00022922,2]
[313026488,1706644244767,-150.0,0.00022923,2]
[313026490,1706644244777,-150.0,0.00022923,2]
[313026492,1706644244787,-150.0,0.00022925,2]
[313026494,1706644244796,-300.0,0.00022928,2]
[313026496,1706644244805,-150.0,0.00022929,2]
[313026498,1706644244814,-150.0,0.00022929,2]
[313026500,1706644244823,-150.0,0.00022931,2]
[313026502,1706644244832,-150.0,0.00022931,2]
[313026504,1706644244842,-150.0,0.00022932,2]
[313026506,1706644244851,-150.0,0.00022934,2]
[313026508,1706644244860,-151.44776082,0.00022936,2]
[313026510,1706644244869,-150.0,0.00022937,2]
[313026512,1706644244878,-150.0,0.00022939,2]
[313026514,1706644244888,-150.0,0.00022939,2]
[313026516,1706644244897,-150.0,0.0002294,2]
[313026518,1706644244906,-150.0,0.00022942,2]
[313026520,1706644244915,-150.0,0.00022947,2]
[313026522,1706644244924,-185.38921834,0.00022951,2]
[313026524,1706644244934,-300.0,0.00022953,2]
[313026526,1706644244944,-150.0,0.00022953,2]
[313026528,1706644244953,-150.0,0.00022955,2]
[313026530,1706644244962,-800.0,0.00022959,2]
[313026532,1706644244971,-150.0,0.0002296,2]
[313026534,1706644244981,-150.0,0.0002296,2]
[313026536,1706644244990,-150.0,0.00022961,2]
[313026538,1706644244999,-150.0,0.00022963,2]
[313026540,1706644245009,-150.0,0.00022963,2]
[313026542,1706644245018,-188.17,0.00022965,2]
[313026544,1706644245027,-150.0,0.00022965,2]
[313026546,1706644245036,-150.0,0.00022966,2]
[313026548,1706644245045,-300.0,0.0002297,2]